bitfinex/quotes_SOLUSD_20250818
["timestamp","ask_amount","ask_price","bid_price","bid_amount"]
[1755554873016,40.02,184.94,184.92,0.67]
[1755554873316,40.02,184.94,184.93,5.40745146]
[1755554875723,40.02,184.94,184.93,6.07745146]
[1755554877428,0.06,184.96,184.93,6.07745146]
[1755554877629,39.9,184.95,184.94,0.67]
[1755554878126,39.9,184.95,184.94,8.30159998]
[1755554878328,0.06,184.96,184.94,8.30159998]
[1755554878508,0.06,184.96,184.95,0.67]
[1755554879022,0.06,184.96,184.95,5.40686672]
[1755554881210,0.06,184.96,184.94,5.40715907]
[1755554881421,0.06,184.96,184.94,6.07715907]
[1755554881912,0.06,184.96,184.95,0.67]
[1755554882425,0.06,184.96,184.95,8.30159998]
[1755554882734,1e-08,184.96,184.95,8.30159998]
[1755554883330,1e-08,184.96,184.95,15.8754897]
[1755554884430,1e-08,184.96,184.95,5.40686672]
[1755554884619,8.30159999,184.96,184.93,5.40745146]
[1755554884934,7.63159998,184.94,184.93,5.40745146]
[1755554885228,0.67000001,184.96,184.93,5.40745146]
[1755554885229,7.63159998,184.95,184.93,5.40745146]
[1755554885633,7.63159999,184.96,184.93,5.40745146]
[1755554886121,7.63159998,184.95,184.93,5.40745146]
[1755554886323,4.8311246,184.95,184.93,5.40745146]
[1755554887622,4.83112461,184.96,184.93,5.40745146]
[1755554887824,5.49112461,184.96,184.93,5.40745146]
[1755554888732,4.8311246,184.95,184.93,5.40745146]
[1755554888915,5.49112461,184.96,184.93,5.40745146]
[1755554890127,4.83112461,184.96,184.93,5.43745146]
[1755554891027,5.49112461,184.96,184.93,5.43745146]
[1755554892345,4.8311246,184.94,184.93,0.03]
[1755554892842,5.4911246,184.94,184.93,0.03]
[1755554893638,44.6511246,184.95,184.93,0.03]
[1755554893840,39.82,184.95,184.93,0.71]
[1755554894637,39.82,184.95,184.94,0.68]
[1755554895029,39.82,184.95,184.94,6.08715907]
[1755554895224,39.82,184.95,184.94,10.91828367]
[1755554895425,39.82,184.95,184.94,6.08715907]
[1755554895737,39.82,184.95,184.94,5.40715907]
[1755554896836,39.82,184.95,184.93,5.43745146]
[1755554899344,39.82,184.95,184.93,6.11745146]
[1755554899547,39.82,184.95,184.93,10.94857606]
[1755554899743,39.82,184.95,184.93,6.11745146]
[1755554899941,45.3111246,184.94,184.93,0.03]
[1755554903253,58.37701059,184.94,184.93,0.03]
[1755554903425,73.48322616,184.94,184.93,0.03]
[1755554904226,73.48452709,184.94,184.93,0.03]
[1755554904427,68.07736802,184.94,184.93,0.03]
[1755554904756,52.97115245,184.94,184.93,0.03]
[1755554905145,49.34300751,184.94,184.93,0.03]
[1755554905334,52.97310999,184.94,184.93,0.03]
[1755554905538,48.14198539,184.94,184.93,0.03]
[1755554905732,43.85188291,184.94,184.93,0.03]
[1755554905951,45.3111246,184.94,184.93,0.03]
[1755554906130,44.6511246,184.94,184.93,0.03]
[1755554906336,48.68614103,184.94,184.93,0.03]
[1755554906746,49.34614103,184.94,184.93,0.03]
[1755554906946,48.68614103,184.94,184.93,0.03]
[1755554907348,4.03501643,184.94,184.93,0.03]
[1755554907660,0.66000001,184.96,184.93,0.03]
[1755554907661,39.8,184.95,184.94,5.40715907]
[1755554907842,39.8,184.95,184.94,6.08715907]
[1755554908155,39.8,184.95,184.94,5.40715907]
[1755554908335,4.03783446,184.95,184.94,5.40715907]
[1755554908537,1e-08,184.96,184.94,6.08715907]
[1755554908759,4.03764618,184.96,184.94,6.08715907]
[1755554909847,4.03764618,184.96,184.94,5.40715907]
[1755554910054,8.86877078,184.96,184.94,5.40715907]
[1755554910238,8.46667838,184.96,184.94,5.40715907]
[1755554910444,4.04071545,184.95,184.94,5.40715907]
[1755554910959,4.04071545,184.95,184.93,5.43741072]
[1755554911357,8.46667838,184.96,184.93,5.43741072]
[1755554911545,4.04275913,184.95,184.93,5.43741072]
[1755554913060,9.53388373,184.94,184.93,0.03]
[1755554913368,13.17256446,184.94,184.93,0.03]
[1755554914962,8.34143986,184.94,184.93,0.03]
[1755554915145,13.17256446,184.94,184.93,0.03]
[1755554915346,59.6859391,184.94,184.93,0.03]
[1755554915872,41.10621557,184.92,184.91,0.03]
[1755554916177,93.41878003,184.92,184.91,0.03]
[1755554916349,99.48652391,184.92,184.91,0.03]
[1755554917267,73.48143986,184.92,184.91,0.03]
[1755554917476,78.31256446,184.92,184.91,0.03]
[1755554918479,73.48143986,184.92,184.91,0.03]
[1755554918768,47.48143986,184.92,184.91,0.03]
[1755554918941,4.04275913,184.92,184.91,5.5611246]
[1755554919137,39.8,184.94,184.91,0.73]
[1755554919354,44.6311246,184.94,184.91,0.03]
[1755554919568,4.04427929,184.93,184.91,0.03]
[1755554919942,12.51505763,184.93,184.91,0.03]
[1755554920146,4.04427929,184.92,184.91,0.03]
[1755554920446,49.36540389,184.92,184.91,0.03]
[1755554920666,53.00505763,184.92,184.91,0.03]
[1755554926863,52.31505763,184.92,184.91,0.03]
[1755554927665,53.00505763,184.92,184.91,0.03]
[1755554927866,52.31505763,184.92,184.91,0.03]
[1755554928256,47.48393303,184.92,184.91,0.03]
[1755554928565,52.31505763,184.92,184.91,0.03]
[1755554928760,48.96077834,184.92,184.91,0.03]
[1755554928975,53.0034018,184.92,184.91,0.03]
[1755554929485,53.0052986,184.92,184.91,0.03]
[1755554930256,52.3152986,184.92,184.91,0.03]
[1755554930667,53.0052986,184.92,184.91,0.03]
[1755554932564,48.174174,184.92,184.91,0.03]
[1755554932781,53.0052986,184.92,184.91,0.03]
[1755554932968,48.174174,184.92,184.91,0.03]
[1755554933165,52.3152986,184.92,184.91,0.03]
[1755554934494,53.0052986,184.92,184.91,0.03]
[1755554935171,58.41304248,184.92,184.91,0.03]
[1755554936161,58.41304248,184.92,184.87,5.02917369]
[1755554936365,4.8311246,184.9,184.87,5.72917369]
[1755554936594,4.8311246,184.88,184.86,5.43943258]
[1755554936903,8.87686526,184.87,184.86,0.03]
[1755554937873,4.8311246,184.87,184.86,0.03]
[1755554938091,48.65670699,184.87,184.86,0.03]
[1755554938289,52.29765181,184.87,184.86,0.03]
[1755554939013,47.46652721,184.87,184.86,0.03]
[1755554939245,43.82558239,184.87,184.86,0.03]
[1755554939399,47.46551114,184.87,184.86,0.03]
[1755554939707,52.29663574,184.87,184.86,0.03]
[1755554940072,47.46551114,184.87,184.86,0.03]
[1755554940909,52.98595903,184.87,184.86,0.03]
[1755554941113,57.3208403,184.87,184.86,0.03]
[1755554941285,57.3208403,184.87,184.83,0.77544647]
[1755554941286,58.39516549,184.87,184.83,0.77544647]
[1755554941613,4.8311246,184.84,184.83,0.36544647]
[1755554941846,44.6111246,184.84,184.83,0.36544647]
[1755554942003,43.82490568,184.84,184.83,0.36544647]
[1755554942200,48.65603028,184.84,184.83,0.36544647]
[1755554942511,48.15430027,184.84,184.83,0.36544647]
[1755554942714,52.98542487,184.84,184.83,0.36544647]
[1755554943042,52.29542487,184.84,184.83,0.36544647]
[1755554944338,39.78,184.86,184.83,1.06544647]
[1755554944539,39.78,184.86,184.84,4.8311246]
[1755554944839,39.78,184.87,184.85,0.7]
[1755554945214,39.78,184.87,184.86,0.7]
[1755554945414,4.8311246,184.9,184.86,0.7]
[1755554945616,0.06,184.93,184.89,4.8311246]
[1755554945934,4.8311246,184.9,184.86,0.7]
[1755554946237,44.51040465,184.92,184.87,5.5311246]
[1755554946238,65.78,184.89,184.87,5.5311246]
[1755554946403,65.78,184.89,184.88,0.7]
[1755554946602,39.78,184.9,184.88,0.7]
[1755554946820,39.78,184.9,184.87,4.8311246]
[1755554947019,39.78,184.92,184.89,5.5311246]
[1755554947256,4.04017041,184.91,184.9,6.10832882]
[1755554947550,39.84,184.93,184.9,6.10832882]
[1755554947719,7.6760849,184.92,184.9,6.10832882]
[1755554947915,4.04020364,184.91,184.9,6.10832882]
[1755554948120,3.63588126,184.92,184.9,6.10832882]
[1755554948344,3.63588126,184.92,184.9,10.23945342]
[1755554948546,39.84,184.93,184.91,0.65]
[1755554948751,39.84,184.93,184.9,10.23945342]
[1755554948940,39.84,184.93,184.91,0.65]
[1755554949459,39.84,184.93,184.92,5.55774388]
[1755554950430,0.06,184.93,184.92,5.55774388]
[1755554951143,0.06,184.93,184.92,4.90774388]
[1755554951452,0.06,184.93,184.91,5.40803634]
[1755554952021,0.06,184.93,184.91,6.05803634]
[1755554953343,0.06,184.93,184.9,5.40832882]
[1755554953528,0.06,184.93,184.92,0.65]
[1755554953734,0.06,184.93,184.91,0.65]
[1755554954659,0.06,184.93,184.92,6.05774388]
[1755554961048,0.06,184.93,184.92,10.88886848]
[1755554961567,0.06,184.95,184.94,4.8311246]
[1755554961982,0.06,185.0,184.95,15.10621557]
[1755554962144,0.06,185.0,184.99,4.8311246]
[1755554962465,0.06,185.0,184.96,0.65]
[1755554962665,0.06,185.0,184.99,4.8311246]
[1755554962853,0.06,185.0,184.99,5.4811246]
[1755554963257,0.06,185.0,184.99,10.8868222]
[1755554963552,0.06,185.0,184.99,5.4056976]
[1755554964548,0.06,185.0,184.97,5.4811246]
[1755554964549,0.06,185.0,184.98,5.40598983]
[1755554964744,0.06,185.0,184.98,6.05598983]
[1755554964959,0.06,184.99,184.98,6.05598983]
[1755554965585,0.06,184.99,184.98,10.88711443]
[1755554966747,0.06,184.99,184.98,6.05598983]
[1755554966952,0.06,184.99,184.98,10.88711443]
[1755554967149,0.06,184.99,184.98,29.08711443]
[1755554969664,0.06,185.0,184.98,29.08711443]
[1755554969865,0.06,185.0,184.99,5.4811246]
[1755554970260,0.06,185.0,184.99,4.8311246]
[1755554970775,0.06,185.0,184.99,5.4811246]
[1755554971283,0.06,185.0,184.99,10.8868222]
[1755554972975,0.06,185.0,184.99,29.0868222]
[1755554975677,0.73,185.0,184.97,5.40628209]
[1755554975875,0.06,185.0,184.97,6.05628209]
[1755554976076,0.06,185.0,184.97,10.88740669]
[1755554976281,0.06,185.0,184.97,5.40628209]
[1755554976471,0.67,184.99,184.97,5.40628209]
[1755554976779,0.67,184.98,184.97,5.40628209]
[1755554977285,0.73,185.0,184.97,5.40628209]
[1755554977500,0.67,184.99,184.97,5.40628209]
[1755554978909,0.06,185.0,184.97,5.40628209]
[1755554979191,0.06,185.0,184.99,4.8311246]
[1755554979571,0.06,185.0,184.99,5.5511246]
[1755554980196,0.06,185.0,184.99,10.9568222]
[1755554980995,0.06,185.0,184.99,6.1256976]
[1755554981174,0.06,185.0,184.99,10.9568222]
[1755554981674,0.06,185.0,184.99,6.1256976]
[1755554981882,0.06,185.0,184.99,10.9568222]
[1755554984888,0.06,185.0,184.99,29.1568222]
[1755554985275,0.06,185.0,184.99,24.3256976]
[1755554985482,0.06,185.0,184.99,29.1568222]
[1755554990291,0.06,185.01,184.99,29.1568222]
[1755554990573,0.06,185.01,185.0,5.5511246]
[1755554990983,1e-08,185.01,185.0,5.5511246]
[1755554991486,1e-08,185.01,185.0,23.7511246]
[1755554991870,1e-08,185.01,185.0,29.15653]
[1755554992790,0.06,185.04,185.0,42.67004351]
[1755554993099,1e-08,185.04,185.03,4.8311246]
[1755554993392,1e-08,185.04,185.03,44.4911246]
[1755554993692,1e-08,185.04,185.03,45.2111246]
[1755554993917,1e-08,185.04,185.03,50.61565359]
[1755554994489,1e-08,185.04,185.03,6.12452899]
[1755554994808,1e-08,185.04,185.03,50.61565359]
[1755554996379,1e-08,185.04,185.03,45.06452899]
[1755554996604,1e-08,185.04,185.03,68.09565359]
[1755554997301,1e-08,185.05,185.03,50.61565359]
[1755554997479,1e-08,185.05,185.04,5.5511246]
[1755554998409,1e-08,185.05,185.04,10.95536152]
[1755554999593,1e-08,185.06,185.05,4.8311246]
[1755554999800,1e-08,185.06,185.05,5.5511246]
[1755555000291,1e-08,185.06,185.05,10.95506947]
[1755555000489,1e-08,185.06,185.05,49.87506947]
[1755555000795,1e-08,185.06,185.05,10.23506947]
[1755555001004,1e-08,185.06,185.05,49.87506947]
[1755555001390,1e-08,185.06,185.05,50.59506947]
[1755555002115,1e-08,185.06,185.05,49.87506947]
[1755555002406,1e-08,185.06,185.05,50.59506947]
[1755555002712,1e-08,185.06,185.05,68.79506947]
[1755555002913,1e-08,185.07,185.05,50.59506947]
[1755555003220,1e-08,185.07,185.06,5.5511246]
[1755555004298,1e-08,185.07,185.06,10.95477746]
[1755555004602,1e-08,185.07,185.06,6.12365286]
[1755555004782,1e-08,185.07,185.06,10.95477746]
[1755555005407,0.66000001,185.07,185.06,5.40365286]
[1755555005595,0.66000001,185.07,185.06,5.43365286]
[1755555005796,5.49112461,185.07,185.06,0.03]
[1755555005992,5.49112461,185.07,185.03,2.16585]
[1755555006210,4.8311246,185.04,185.03,2.16585]
[1755555006415,5.4911246,185.04,184.99,5.4056976]
[1755555006714,5.4911246,185.03,184.99,5.4056976]
[1755555006924,5.4911246,185.02,184.99,5.4056976]
[1755555007141,0.66,185.01,184.99,5.4056976]
[1755555007428,4.8311246,185.0,184.97,5.40628209]
[1755555007658,5.5311246,184.99,184.97,5.40628209]
[1755555007811,5.5311246,184.98,184.96,5.40656588]
[1755555007998,9.03491433,185.04,184.96,5.40656588]
[1755555007999,4.8311246,185.0,184.96,5.40656588]
[1755555008207,0.7,184.99,184.97,4.8311246]
[1755555008400,4.8311246,185.0,184.98,5.40598983]
[1755555008708,4.8311246,185.01,184.98,5.40598983]
[1755555008918,4.8311246,185.02,184.98,5.40598983]
[1755555009206,0.7,185.0,184.98,5.40598983]
[1755555010517,0.7,185.0,184.97,5.40628209]
[1755555011040,4.8311246,185.02,184.97,5.40628209]
[1755555011209,3.63039947,185.05,184.97,5.40628209]
[1755555011210,0.7,184.99,184.97,5.40628209]
[1755555011629,4.8311246,185.01,184.97,5.40628209]
[1755555011929,0.7,184.98,184.97,5.40628209]
[1755555012132,5.5311246,184.98,184.96,5.40651349]
[1755555012454,0.7,184.97,184.95,0.03]
[1755555012943,0.7,184.97,184.95,4.8611246]
[1755555013931,0.7,184.99,184.95,4.8611246]
[1755555014125,0.7,184.98,184.95,4.8611246]
[1755555014640,0.7,184.98,184.96,5.40657439]
[1755555014951,4.8311246,185.04,184.97,4.8311246]
[1755555015108,0.7,185.02,184.99,4.8311246]
[1755555015312,0.7,185.02,184.97,0.7]
[1755555015509,30.8311246,185.05,184.97,0.7]
[1755555015823,0.7,185.01,184.99,4.8311246]
[1755555016725,4.8311246,185.04,185.0,5.4054054]
[1755555016927,4.8311246,185.03,185.0,5.4054054]
[1755555017333,0.7,185.02,185.0,5.4054054]
[1755555017641,0.7,185.01,185.0,5.4054054]
[1755555018322,0.7,185.03,185.0,5.4054054]
[1755555018526,0.7,185.02,185.0,5.4054054]
[1755555020658,1e-08,185.07,185.01,5.5311246]
[1755555020659,26.70000001,185.07,185.01,5.5311246]
[1755555020947,0.70000001,185.07,185.03,4.8311246]
[1755555021317,0.70000001,185.07,185.01,0.7]
[1755555021318,0.7,185.06,185.01,0.7]
[1755555021522,0.7,185.05,185.03,4.8311246]
[1755555022058,1e-08,185.07,185.03,4.8311246]
[1755555022258,0.7,185.06,185.03,4.8311246]
[1755555022674,0.7,185.06,185.04,5.40423692]
[1755555022850,4.03352906,185.07,185.04,5.40423692]
[1755555023242,1e-08,185.07,185.06,4.8311246]
[1755555024559,1e-08,185.07,185.06,10.23477746]
[1755555024953,1e-08,185.07,185.06,10.93477746]
[1755555026176,1e-08,185.07,185.06,29.13477746]
[1755555029270,1e-08,185.07,185.06,23.60365286]
[1755555029446,0.70000001,185.07,185.06,5.40365286]
[1755555030459,1e-08,185.07,185.05,5.40394487]
[1755555030674,1e-08,185.07,185.06,5.5311246]
[1755555030875,1e-08,185.07,185.06,4.8311246]
[1755555031578,1e-08,185.07,185.05,6.10394487]
[1755555031776,0.7,185.06,185.05,5.40394487]
[1755555032359,5.5311246,185.06,185.03,5.40452899]
[1755555032564,1e-08,185.07,185.02,4.8311246]
[1755555032879,1e-08,185.07,185.03,4.8311246]
[1755555033076,1e-08,185.07,185.02,4.8311246]
[1755555033279,1e-08,185.07,185.03,4.8311246]
[1755555033578,1e-08,185.07,185.06,4.8311246]
[1755555034084,1e-08,185.07,185.06,5.5311246]
[1755555034382,1e-08,185.07,185.05,4.8311246]
[1755555034579,1e-08,185.07,185.06,5.40365286]
[1755555034877,1e-08,185.07,185.04,5.40423692]
[1755555035063,0.7,185.06,185.04,5.40423692]
[1755555035270,0.7,185.05,185.04,5.40423692]
[1755555035469,1e-08,185.07,185.04,5.40423692]
[1755555035674,0.7,185.06,185.04,5.40423692]
[1755555035859,1e-08,185.07,185.04,5.40423692]
[1755555036065,0.70000001,185.07,185.04,5.40423692]
[1755555037074,0.70000001,185.07,185.04,10.23536152]
[1755555037265,0.70000001,185.07,185.04,5.40423692]
[1755555037460,0.70000001,185.07,185.04,10.23536152]
[1755555037662,1e-08,185.07,185.04,10.23536152]
[1755555038298,1e-08,185.07,185.05,4.8311246]
[1755555039076,1e-08,185.07,185.04,10.90536152]
[1755555039286,1e-08,185.07,185.04,6.07423692]
[1755555039494,1e-08,185.07,185.04,10.90536152]
[1755555039891,1e-08,185.07,185.04,5.40423692]
[1755555040097,0.71,185.06,185.04,5.40423692]
[1755555044003,0.71,185.06,185.04,23.60423692]
[1755555044576,0.71,185.05,185.04,5.40423692]
[1755555044776,5.5411246,185.05,185.03,0.03]
[1755555045088,4.8311246,185.04,185.03,0.03]
[1755555045280,0.71,185.04,185.03,0.03]
[1755555045598,5.5411246,185.04,185.03,0.03]
[1755555048086,0.71,185.04,185.03,0.03]
[1755555048403,5.5411246,185.04,185.03,0.03]
[1755555049310,9.57769565,185.04,185.03,0.03]
[1755555052912,4.03657105,185.04,185.03,0.7]
[1755555053126,1e-08,185.07,185.03,5.5311246]
[1755555053285,4.83112461,185.07,185.03,0.7]
[1755555053493,4.8311246,185.06,185.03,0.7]
[1755555054888,4.8311246,185.06,185.04,5.40423692]
[1755555055083,5.54112461,185.07,185.04,5.40423692]
[1755555056398,4.8311246,185.05,185.03,0.03]
[1755555057129,4.8311246,185.04,185.03,0.03]
[1755555058125,5.5411246,185.04,185.03,0.03]
[1755555058320,4.8311246,185.04,185.03,0.03]
[1755555059785,0.06,185.06,185.03,0.03]
[1755555059990,4.8311246,185.05,185.03,0.7]
[1755555060291,4.8311246,185.05,185.03,0.03]
[1755555061023,0.71,185.05,185.03,0.03]
[1755555061205,4.8311246,185.04,185.03,0.03]
[1755555062042,0.71,185.05,185.03,0.03]
[1755555062332,4.8311246,185.05,185.03,0.7]
[1755555063253,4.8311246,185.05,185.04,5.40423692]
[1755555067521,0.06,185.06,185.04,5.40423692]
[1755555067722,5.5011246,185.05,185.03,0.03]
[1755555067940,4.8311246,185.04,185.03,0.03]
[1755555069038,5.5011246,185.04,185.03,0.03]
[1755555069352,4.8311246,185.04,185.03,0.03]
[1755555069539,0.73,185.06,185.03,0.03]
[1755555069849,4.8311246,185.04,185.03,0.03]
[1755555071164,0.73,185.06,185.03,0.03]
[1755555071460,4.8311246,185.04,185.03,0.03]
[1755555072346,5.5011246,185.05,185.03,0.03]
[1755555072749,0.06,185.06,185.03,0.03]
[1755555073048,4.8911246,185.06,185.03,0.69]
[1755555073948,5.5611246,185.06,185.04,5.40423692]
[1755555074146,4.8311246,185.05,185.04,5.40423692]
[1755555074962,4.8311246,185.05,185.03,0.03]
[1755555077856,5.5611246,185.06,185.03,0.03]
[1755555078233,0.67,185.05,185.03,0.03]
[1755555079333,4.71755966,185.05,185.03,0.03]
[1755555079850,4.8311246,185.05,185.03,0.03]
[1755555082073,5.5011246,185.05,185.03,0.03]
[1755555082756,0.06,185.06,185.03,0.03]
[1755555082928,4.8311246,185.05,185.03,0.03]
[1755555084134,0.06,185.06,185.04,0.66]
[1755555084347,4.04817876,185.05,185.04,0.66]
[1755555084859,0.06,185.06,185.04,0.66]
[1755555085057,4.10804876,185.06,185.04,0.66]
[1755555085958,0.06,185.06,185.04,0.66]
[1755555086263,4.8911246,185.06,185.05,5.40394487]
[1755555086443,9.60879629,185.06,185.05,5.40394487]
[1755555086644,9.60879629,185.06,185.03,23.63423942]
[1755555086843,4.8311246,185.04,185.03,23.63423942]
[1755555087050,5.5011246,185.05,185.03,23.63423942]
[1755555088364,4.8311246,185.05,185.03,24.29423942]
[1755555090065,4.8311246,185.05,185.03,23.63423942]
[1755555091039,5.5011246,185.05,185.03,23.63423942]
[1755555091240,5.5011246,185.05,185.03,5.43423942]
[1755555092164,0.06,185.06,185.03,0.03]
[1755555092165,9.55027539,185.04,185.03,0.03]
[1755555092675,13.18346258,185.04,185.03,0.03]
[1755555092840,9.55027539,185.04,185.03,0.03]
[1755555093035,13.18346258,185.04,185.03,0.03]
[1755555097345,8.35233798,185.04,185.03,0.03]
[1755555097545,13.18346258,185.04,185.03,0.03]
[1755555100664,9.55027539,185.04,185.03,0.03]
[1755555100849,13.18278283,185.04,185.03,0.03]
[1755555101054,9.54959564,185.04,185.03,0.03]
[1755555101255,13.18239184,185.04,185.03,0.03]
[1755555101562,9.54920465,185.04,185.03,0.03]
[1755555101762,13.18239184,185.04,185.03,0.03]
[1755555102074,9.54920465,185.04,185.03,0.03]
[1755555102277,13.18239184,185.04,185.03,0.03]
[1755555102453,9.54920465,185.04,185.03,0.03]
[1755555102644,13.1820022,185.04,185.03,0.03]
[1755555102843,9.54881501,185.04,185.03,0.03]
[1755555103047,13.1820022,185.04,185.03,0.03]
[1755555103266,58.00623912,185.04,185.03,0.03]
[1755555105960,52.6020022,185.04,185.03,0.03]
[1755555108360,99.11245469,185.04,185.03,0.03]
[1755555108679,77.94357929,185.04,185.03,0.03]
[1755555109264,68.28133009,185.04,185.03,0.03]
[1755555109471,73.11245469,185.04,185.03,0.03]
[1755555109857,69.06476428,185.04,185.03,0.03]
[1755555110053,77.94078516,185.04,185.03,0.03]
[1755555110471,73.89588888,185.04,185.03,0.03]
[1755555110679,77.94017402,185.04,185.03,0.03]
[1755555111480,73.10904942,185.04,185.03,0.03]
[1755555112281,77.94017402,185.04,185.03,0.03]
[1755555112592,73.10904942,185.04,185.03,0.03]
[1755555117074,68.27792482,185.04,185.03,0.03]
[1755555117269,73.10904942,185.04,185.03,0.03]
[1755555118508,26.0,185.02,185.01,0.03]
[1755555118714,82.71972153,185.02,185.01,0.03]
[1755555119004,77.88535426,185.02,185.01,0.03]
[1755555120571,15.10621557,185.01,185.0,0.03]
[1755555120771,41.10621557,184.98,184.97,0.03]
[1755555121085,15.10621557,184.97,184.96,0.03]
[1755555121281,27.61589972,184.97,184.96,0.03]
[1755555121486,27.61687132,184.97,184.96,0.03]
[1755555122288,23.97935424,184.97,184.96,0.03]
[1755555122599,8.87313867,184.97,184.96,0.73]
[1755555122972,48.23313867,184.97,184.96,0.73]
[1755555123175,4.8311246,184.97,184.96,0.73]
[1755555123397,4.8311246,184.97,184.96,0.03]
[1755555123591,34.86974535,184.97,184.96,0.03]
[1755555123789,30.03862075,184.97,184.96,0.73]
[1755555124003,34.87006522,184.97,184.96,0.73]
[1755555124788,34.87006522,184.97,184.96,0.03]
[1755555125387,49.97628079,184.97,184.96,0.03]
[1755555125681,50.65628079,184.97,184.96,0.03]
[1755555125891,56.06256288,184.97,184.96,0.03]
[1755555126787,59.6962661,184.97,184.96,0.03]
[1755555126991,55.65732548,184.97,184.96,0.03]
[1755555127196,59.69490914,184.97,184.96,0.03]
[1755555127517,54.28862705,184.97,184.96,0.03]
[1755555127706,53.60862705,184.97,184.96,0.03]
[1755555127903,49.97492383,184.97,184.96,0.03]
[1755555129696,53.6072295,184.97,184.96,0.03]
[1755555130017,49.97492383,184.97,184.96,0.03]
[1755555130212,50.66492383,184.97,184.96,0.03]
[1755555130397,54.29772729,184.97,184.96,0.03]
[1755555130819,56.07120592,184.97,184.96,0.03]
[1755555131007,59.70356015,184.97,184.96,0.03]
[1755555133599,59.70356015,184.97,184.95,0.03]
[1755555133801,67.63727806,184.96,184.95,0.03]
[1755555135517,73.04385245,184.96,184.94,0.03]
[1755555135726,28.29727806,184.95,184.93,0.03]
[1755555135896,66.94727806,184.94,184.93,0.03]
[1755555136215,67.63594186,184.94,184.93,0.03]
[1755555137206,15.10621557,184.93,184.92,0.03]
[1755555137405,33.12706646,184.93,184.92,0.03]
[1755555137606,38.53451792,184.93,184.92,0.03]
[1755555137919,33.70339332,184.93,184.92,0.03]
[1755555138295,33.70164634,184.93,184.92,0.03]
[1755555138909,27.60419488,184.93,184.92,0.03]
[1755555139098,66.92419488,184.93,184.92,0.03]
[1755555139414,92.92419488,184.93,184.92,0.69]
[1755555139601,49.97358763,184.93,184.92,0.03]
[1755555139802,89.29358763,184.93,184.92,0.03]
[1755555140018,63.29358763,184.93,184.92,0.03]
[1755555140194,89.29358763,184.93,184.92,0.03]
[1755555140397,89.98358763,184.93,184.92,0.03]
[1755555140592,99.0194073,184.93,184.92,0.03]
[1755555140819,73.0194073,184.93,184.92,0.03]
[1755555142265,49.97358763,184.93,184.92,0.03]
[1755555142429,89.29358763,184.93,184.92,0.69]
[1755555142958,84.46246303,184.93,184.92,0.69]
[1755555143263,89.29358763,184.93,184.92,0.69]
[1755555143434,39.32,184.93,184.92,0.69]
[1755555144032,44.1511246,184.93,184.92,0.69]
[1755555144433,39.32,184.93,184.92,0.69]
[1755555146060,4.8311246,184.94,184.92,0.69]
[1755555146245,39.3,184.93,184.92,0.69]
[1755555146564,44.1311246,184.93,184.92,0.69]
[1755555147558,26.0,184.95,184.92,6.09772174]
[1755555147756,39.3,184.94,184.93,0.66]
[1755555147955,70.1311246,184.95,184.94,0.66]
[1755555149065,70.1311246,184.95,184.92,0.03]
[1755555149265,4.8311246,184.94,184.92,0.03]
[1755555149579,4.8311246,184.94,184.92,0.69]
[1755555150257,4.8311246,184.94,184.92,6.09767508]
[1755555150640,44.1311246,184.93,184.92,0.03]
[1755555150859,63.96093805,184.93,184.92,0.03]
[1755555152582,59.12981345,184.93,184.92,0.03]
[1755555152759,63.96093805,184.93,184.92,0.03]
[1755555153162,58.43981345,184.93,184.92,0.03]
[1755555153377,63.96093805,184.93,184.92,0.03]
[1755555153959,73.00040006,184.93,184.92,0.03]
[1755555154346,68.96680218,184.93,184.92,0.03]